Workbook

Sheet Bioreactor Design
B2: USDA- Natural Resources Conservation Service | H2: MD Version 1.6 - 4_14_20
B3: Project Name | E3: Designed by: | H3: Date:
B4: Site Location | E4: Checked by: | H4: Date:
B5: County | E5: Approved by: | H5: Date: | Y5: Drain capacity
U6: 1 | Y6: =IF(D14>0,D14*0.15,10000) -> 10000 | Z6: Option 1
B7: Determine Design Capacity: | U7: 1 | V7: CPT | Y7: =IF(I11>0,I11*0.15,10000) -> 10000 | Z7: Option 2
B8: Option 1 - Mainline Configuration | F8: Option 2 - Drainage Coefficient | U8: 2 | V8: Dual Wall | Y8: =IF(I14>0,I14*0.15,10000) -> 10000 | Z8: Option 3
B9: Mainline tile size (in) | F9: Drainage area of tile system (ac) | U9: 3 | V9: Clay or Concrete | Y9: =IF(K10>0,K10,10000) -> 10000 | Z9: Option 4
B10: Mainline tile grade (%) | F10: Drainage coefficient (inches/day) | Y10: =MIN(Y6:Y9) -> 10000
B11: Mainline tile material | F11: Capacity of drainage system | I11: =I9*I10*43560/12/24/3600 -> 0
C12: =IF(U6=2,0.012,IF(U6=3, 0.013,X14)) -> 0.015
B13: Peak velocity in mainline given size and grade | D13: =1.49*(D10/100)^0.5*((Y14/12/4)^(2/3))/C12 -> 0 | F13: Option 3 - Direct Entry (from model or other source) | W13: selected | X13: n | Y13: tile size | Z13: inlet area(Perf)
B14: Peak flow from mainline size and grade | D14: =+D13*PI()*(Y14/2/12)^2 -> 0 | F14: Capacity of drainage system (cfs) | U14: CPT | W14: 3 | X14: =INDEX(W19:W27,W14) -> 0.015 | Y14: =INDEX(U19:U27,W14) -> 6 | Z14: =INDEX(X19:X27,W14) -> 1
B16: Design Capacity: | D16: =IF(Y10=10000,0,Y10) -> 0 | E16: (15% of Option 1, 2, or 3 - or 100% of Option 4 - whichever is lowest)
B17: Size Bioreactor:
B18: Design type (soil cover or open type) | U18: Tile Dia. (in.) | W18: n | X18: area (in2/ft)
U19: 4 | W19: 0.015 | X19: 1
B20: Conductivity of wood media (ft/s) | D20: =Conductivity!AJ74/2.54/12 -> 0.09642023914 | U20: 5 | W20: 0.015 | X20: 1
B21: Porosity of wood media (decimal %) | D21: =INDEX(V43:X45,U39,Y35) -> 0.53 | U21: 6 | W21: 0.015 | X21: 1
U22: 8 | W22: 0.016 | X22: 1
B23: Flow length, L (ft) | U23: 10 | W23: 0.017 | X23: 1
B24: Trench width, W (ft) | U24: 12 | W24: 0.018 | X24: 1.5
B25: Inlet stop log height above trench bottom (in) | U25: 15 | W25: 0.018 | X25: 1.5
B26: Outlet stop log height above trench bottom (in) | U26: 18 | W26: 0.02 | X26: 1.5
U27: 21 | W27: 0.02 | X27: 1.5
B28: Average flow depth (ft) | D28: =(D25+D26)/2/12 -> 0
B29: Hydraulic gradient (ft/ft) | D29: =IF(D23>0,(D25-D26)/12/D23,"") -> 
B31: Loading density (Acres per 100 sq.ft. bioreactor) | D31: =IF(AND(D23>0,D24>0),I9/(D23*D24/100),"") ->  | U31: Source: University of Illinois bioreactor design software
B32: Estimated load reduction (%) | D32: =IF(AND(ISNUMBER(D31),D31>0),95.42/D31^0.435,"") ->  | E32: minimum 30%
U33: Hydraulic Conductivity (ft/s)
B34: Hydraulic retention time (hours) | D34: =IF(AND(D35>0,ISNUMBER(D35)),D23*D24*D28*D21/D35/(60*60),"") ->  | E34: minimum 3 hrs
B35: Bioreactor flow capacity (cfs) | D35: =IF(AND(D28>0,D16>0),MIN(D20*D29*(D24*D28),D14),"") ->  | U35: Type of woodchip | V35: No soil on top | W35: 1 ft of soil | X35: 2 ft of soil | Y35: 1 | Z35: =V35 -> No soil on top
B36: % of design capacity | D36: =IF(AND(ISNUMBER(D35),D16>0),D35/D16*100,"") ->  | E36: target 100% | U36: Hardwood | V36: =0.97/2.54/12 -> 0.03182414698 | W36: =0.84/2.54/12 -> 0.02755905512 | X36: =0.94/2.54/12 -> 0.03083989501 | Z36: =W35 -> 1 ft of soil
B37: Notes: | U37: Shredded | V37: =0.69/2.54/12 -> 0.02263779528 | W37: =0.61/2.54/12 -> 0.02001312336 | X37: =0.6/2.54/12 -> 0.01968503937 | Z37: =X35 -> 2 ft of soil
U38: Mixed | V38: =0.69/2.54/12 -> 0.02263779528 | W38: =0.59/2.54/12 -> 0.01935695538 | X38: =0.53/2.54/12 -> 0.01738845144
U39: 3
U41: Porosity (decimal %)
U42: Type of woodchip | V42: No soil on top | W42: 1 ft of soil | X42: 2 ft of soil
U43: Hardwood | V43: 0.59 | W43: 0.55 | X43: 0.54
U44: Shredded | V44: 0.64 | W44: 0.6 | X44: 0.59
U45: Mixed | V45: 0.53 | W45: 0.47 | X45: 0.47
U46: 3

Sheet Conductivity (hidden)
B5: Source: University of Illinois bioreactor design software
G6: 1
G7: 1 | H7: CPT
G8: 2 | H8: Dual Wall
G17: Chipometer data
U23: Average for vanDriel
U24: 1.2
B25: Hydraulic Conductivity (ft/s)
B27: Type of woodchip | C27: No soil on top | D27: 1 ft of soil | E27: 2 ft of soil | F27: 1 | G27: =C27 -> No soil on top | J27: NOTE: a wide variety of hydraulic conductivities exist.
B28: Hardwood | C28: =0.97/2.54/12 -> 0.03182414698 | D28: =0.84/2.54/12 -> 0.02755905512 | E28: =0.94/2.54/12 -> 0.03083989501 | G28: =D27 -> 1 ft of soil | J28: Go with the field data rather than the chipometer (horizontal vs vertical)
B29: Shredded | C29: =0.69/2.54/12 -> 0.02263779528 | D29: =0.61/2.54/12 -> 0.02001312336 | E29: =0.6/2.54/12 -> 0.01968503937 | G29: =E27 -> 2 ft of soil | J29: Use vanDriel; it is much lower than the Chun data (more conservative).
B30: Mixed | C30: =0.69/2.54/12 -> 0.02263779528 | D30: =0.59/2.54/12 -> 0.01935695538 | E30: =0.53/2.54/12 -> 0.01738845144
B31: 3
B33: Porosity (decimal %)
B34: Type of woodchip | C34: No soil on top | D34: 1 ft of soil | E34: 2 ft of soil | AJ34: Averages
B35: Hardwood | C35: 0.59 | D35: 0.55 | E35: 0.54
B36: Shredded | C36: 0.64 | D36: 0.6 | E36: 0.59 | AJ36: =(3.9+3.95+3.46)/3 -> 3.77
B37: Mixed | C37: 0.53 | D37: 0.47 | E37: 0.47
AJ40: =(3.56+3.71+3.68)/3 -> 3.65
D41: selected | E41: n | F41: tile size | G41: inlet area(Perf)
B42: CPT | D42: 5 | E42: =INDEX(D44:D52,D42) -> 0.015 | F42: =INDEX(B44:B52,D42) -> 10 | G42: =INDEX(E44:E52,D42) -> 1 | I42: ADS Tech Note 1.02 | K42: Oct. 2008 | L42: http://www.ads-pipe.com/pdf/en/A1.02-Single_Wall_Perf_Patterns.pdf
B43: Tile Dia. (in.) | D43: n | E43: area (in2/ft)
B44: 4 | D44: 0.015 | E44: 1 | AJ44: =(3.57+3.4+3.06)/3 -> 3.343333333
B45: 5 | D45: 0.015 | E45: 1
B46: 6 | D46: 0.015 | E46: 1
B47: 8 | D47: 0.015 | E47: 1
B48: 10 | D48: 0.015 | E48: 1
B49: 12 | D49: 0.017 | E49: 1.5 | AJ49: =(3.47+2.8+2.52)/3 -> 2.93
B50: 15 | D50: 0.02 | E50: 1.5
B51: 18 | D51: 0.02 | E51: 1.5
B52: 21 | D52: 0.02 | E52: 1.5
AJ53: =(2.5+2.78+2.94)/3 -> 2.74
B54: Note: bioreactor flow rate will depend on:
B55: 1. hydraulic conductivity of wood chips | F55: =#REF!*#REF!*(#REF!*#REF!) ->  | G55: cfs
B56: 2. flow capacity of collector manifold | F56: *
B57: 3. flow capacity of outlet pipe | F57: =1.49*(#REF!)^0.5*((6/12/4)^(2/3))/0.015 ->  | G57: assume 6" dia
B58: 4. flow received from drainage tile system
I59: * Assume that the collector manifold (regular CPT slots/openings) is not the limiting factor.
S69: Use "creek water experiment" rather than "deionised water experiment".
AJ73: Average of vanDriel and Chun:
AJ74: =SUM(U24,AJ36,AJ40,AJ44,AJ49,AJ53)/6 -> 2.938888889

Sheet Example Design
B2: USDA- Natural Resources Conservation Service | H2: MD Version 1.6 - 4/14/2020
B3: Project Name | C3: EXAMPLE ONLY | E3: Designed by: | H3: Date:
B4: Site Location | E4: Checked by: | H4: Date:
B5: County | E5: Approved by: | H5: Date: | Y5: Drain capacity
U6: 1 | Y6: =IF(D14>0,D14*0.15,10000) -> 0.03270929359 | Z6: Option 1
B7: Determine Design Capacity: | U7: 1 | V7: CPT | Y7: =IF(I11>0,I11*0.15,10000) -> 0.02599609375 | Z7: Option 2
B8: Option 1 - Mainline Configuration | F8: Option 2 - Drainage Coefficient | U8: 2 | V8: Dual Wall | Y8: =IF(I14>0,I14*0.15,10000) -> 10000 | Z8: Option 3
B9: Mainline tile size (in) | F9: Drainage area of tile system (ac) | I9: 11 | U9: 3 | V9: Clay or Concrete | Y9: =IF(K10>0,K10,10000) -> 10000 | Z9: Option 4
B10: Mainline tile grade (%) | D10: 0.2 | F10: Drainage coefficient (inches/day) | I10: 0.375 | Y10: =MIN(Y6:Y9) -> 0.02599609375
B11: Mainline tile material | F11: Capacity of drainage system | I11: =I9*I10*43560/12/24/3600 -> 0.1733072917
C12: =IF(U6=2,0.012,IF(U6=3, 0.013,X14)) -> 0.015
B13: Peak velocity in mainline given size and grade | D13: =1.49*(D10/100)^0.5*((Y14/12/4)^(2/3))/C12 -> 1.110580429 | F13: Option 3 - Direct Entry (from model or other source) | W13: selected | X13: n | Y13: tile size | Z13: inlet area(Perf)
B14: Peak flow from mainline size and grade | D14: =+D13*PI()*(Y14/2/12)^2 -> 0.2180619573 | F14: Capacity of drainage system (cfs) | U14: CPT | W14: 3 | X14: =INDEX(W19:W27,W14) -> 0.015 | Y14: =INDEX(U19:U27,W14) -> 6 | Z14: =INDEX(X19:X27,W14) -> 1
B16: Design Capacity: | D16: =IF(Y10=10000,0,Y10) -> 0.02599609375 | E16: (15% of Option 1, 2, or 3 - or 100% of Option 4 - whichever is lowest)
B17: Size Bioreactor:
B18: Design type (soil cover or open type) | U18: Tile Dia. (in.) | W18: n | X18: area (in2/ft)
U19: 4 | W19: 0.015 | X19: 1
B20: Conductivity of wood media (ft/s) | D20: =Conductivity!AJ74/2.54/12 -> 0.09642023914 | U20: 5 | W20: 0.015 | X20: 1
B21: Porosity of wood media (decimal %) | D21: =INDEX(V43:X45,U39,Y35) -> 0.53 | U21: 6 | W21: 0.015 | X21: 1
U22: 8 | W22: 0.016 | X22: 1
B23: Flow length, L (ft) | D23: 20 | U23: 10 | W23: 0.017 | X23: 1
B24: Trench width, W (ft) | D24: 12 | U24: 12 | W24: 0.018 | X24: 1.5
B25: Inlet stop log height above trench bottom (in) | D25: 38 | U25: 15 | W25: 0.018 | X25: 1.5
B26: Outlet stop log height above trench bottom (in) | D26: 36 | U26: 18 | W26: 0.02 | X26: 1.5
U27: 21 | W27: 0.02 | X27: 1.5
B28: Average flow depth (ft) | D28: =(D25+D26)/2/12 -> 3.083333333
B29: Hydraulic gradient (ft/ft) | D29: =IF(D23>0,(D25-D26)/12/D23,"") -> 0.008333333333
B31: Loading density (Acres per 100 sq.ft. bioreactor) | D31: =IF(AND(D23>0,D24>0),I9/(D23*D24/100),"") -> 4.583333333 | U31: Source: University of Illinois bioreactor design software
B32: Estimated load reduction (%) | D32: =IF(AND(ISNUMBER(D31),D31>0),95.42/D31^0.435,"") -> 49.20684093 | E32: minimum 30%
U33: Hydraulic Conductivity (ft/s)
B34: Hydraulic retention time (hours) | D34: =IF(AND(D35>0,ISNUMBER(D35)),D23*D24*D28*D21/D35/(60*60),"") -> 3.664514178 | E34: minimum 3 hrs
B35: Bioreactor flow capacity (cfs) | D35: =IF(AND(D28>0,D16>0),MIN(D20*D29*(D24*D28),D14),"") -> 0.02972957373 | U35: Type of woodchip | V35: No soil on top | W35: 1 ft of soil | X35: 2 ft of soil | Y35: 1 | Z35: =V35 -> No soil on top
B36: % of design capacity | D36: =IF(AND(ISNUMBER(D35),D16>0),D35/D16*100,"") -> 114.3616961 | E36: target 100% | U36: Hardwood | V36: =0.97/2.54/12 -> 0.03182414698 | W36: =0.84/2.54/12 -> 0.02755905512 | X36: =0.94/2.54/12 -> 0.03083989501 | Z36: =W35 -> 1 ft of soil
B37: Notes: | U37: Shredded | V37: =0.69/2.54/12 -> 0.02263779528 | W37: =0.61/2.54/12 -> 0.02001312336 | X37: =0.6/2.54/12 -> 0.01968503937 | Z37: =X35 -> 2 ft of soil
B38: There are many possible combinations of length/width and stoplog settings that would achieve the design targets. This is one potential design. We used Option 2 for this example, but entered Option 1 information as well, to document the fact that the drainage coefficient method was the limiting factor of the methods considered. | U38: Mixed | V38: =0.69/2.54/12 -> 0.02263779528 | W38: =0.59/2.54/12 -> 0.01935695538 | X38: =0.53/2.54/12 -> 0.01738845144
U39: 3
U41: Porosity (decimal %)
U42: Type of woodchip | V42: No soil on top | W42: 1 ft of soil | X42: 2 ft of soil
U43: Hardwood | V43: 0.59 | W43: 0.55 | X43: 0.54
U44: Shredded | V44: 0.64 | W44: 0.6 | X44: 0.59
U45: Mixed | V45: 0.53 | W45: 0.47 | X45: 0.47
U46: 3

Sheet References
A1: References
A4: ADS, Inc. Drainage Handbook. 2010. Hydraulics. Table 3-1. http://www.ads-pipe.com/pdf/en/ADH3-Hydraulics_(ID_2999).pdf
A6: American Society of Agricultural and Biological Engineers. 2015. Design and Construction of Subsurface Drainage Systems on Agricultural Lands in Humid Areas. ASAE EP260.5 FEB 2015.
A8: Christianson, Laura, Alok Bhandari, and Matthew J. Helmers. 2011. Pilot-Scale Evaluation of Denitrification Drainage Bioreactors: Reactor Geometry and Performance. Journal of Environmental Engineering 137(4): 213-220.
A10: Christianson, Laura, A. Castello, R. Christianson, M. Helmers, A. Bhandari. 2010. Hydraulic Property Determination of Denitrifying Bioreactor Fill Media. Applied Engineering in Agriculture 26(5): 849-854.
A12: Robertson, W. D., D. W. Blowes, C. J. Ptacek, and J. A. Cherry. 2000. Long‐term performance of in situ reactive barriers for nitrate remediation. Ground Water 38(5): 689‐695.
A14: USDA-NRCS. 2001. Water Management (Drainage). National Engineering Handbook, Part 650, Chpater 14, Table 14-7.
A16: Van Driel, P. W., Robertson, W. D., and Merkley, L. C. 2006. Denitrification of agricultural drainage using wood-based reactors. Transactions of the ASABE 49(2): 565-573.

Sheet Notes
A1: Date | B1: Version | C1: By | D1: Notes
A2: 2010 | B2: --- | D2: Iowa-Indiana interim design spreadsheet
A3: 2013-08-05 | B3: 1.1 | C3: R.Book | D3: Adjust for Illinois use, update to new interim standard 747 and University of Illinois-generated woodchip properties
A4: 2013-08-07 | B4: 1.2 | C4: R.Book | D4: Add entries for site name and location, designer name, date, etc.
A5: 2013-08-13 | B5: 1.3 | C5: R.Book | D5: Add conditional formatting on critical design values
A6: 2016-11-29 | B6: 1.4 | C6: R.Book | D6: Change format to match Saturated Buffer design method
D7: Add function for determining system capacity using drainage coefficient
A8: 2016-12-29 | B8: 1.5 | C8: R.Book | D8: Adjusted minor omissions based on review comments
D9: Added Example Design tab as a reference.
A10: 2020-04-14 | B10: 1.6 | C10: KWolfe | D10: Modified for use in Maryland
